[Event "Late-Titled-Tuesday-Blitz-February-20-2024"]
[Site "Chess.com"]
[Date "2024.02.20"]
[Round "10"]
[White "Msb2"]
[Black "FairChess_on_YouTube"]
[Result "1/2-1/2"]
[WhiteElo "3029"]
[BlackElo "3067"]
[TimeControl "180+1"]
[EndTime "15:57:30 PST"]
[Termination "Game drawn by repetition"]

1. d4 {[%clk 0:03:00.9]} 1... Nf6 {[%clk 0:02:58.1]} 2. c4 {[%clk 0:03:01.3]}
2... e6 {[%clk 0:02:58.7]} 3. Nc3 {[%clk 0:03:02]} 3... Bb4 {[%clk 0:02:55.5]}
4. e3 {[%clk 0:03:02.5]} 4... O-O {[%clk 0:02:55]} 5. Bd2 {[%clk 0:03:03.2]}
5... d5 {[%clk 0:02:53.9]} 6. Nf3 {[%clk 0:03:03.6]} 6... Nbd7 {[%clk
0:02:46.3]} 7. a3 {[%clk 0:03:02.1]} 7... Be7 {[%clk 0:02:45.6]} 8. cxd5 {[%clk
0:03:02.2]} 8... exd5 {[%clk 0:02:45.1]} 9. Bd3 {[%clk 0:03:02.9]} 9... Re8
{[%clk 0:02:43.7]} 10. Qc2 {[%clk 0:03:02.3]} 10... c5 {[%clk 0:02:38.9]} 11.
O-O {[%clk 0:02:54.5]} 11... c4 {[%clk 0:02:36.6]} 12. Bf5 {[%clk 0:02:53.7]}
12... g6 {[%clk 0:02:33.5]} 13. Bh3 {[%clk 0:02:52.4]} 13... Nb6 {[%clk
0:02:28.3]} 14. Bxc8 {[%clk 0:02:52.3]} 14... Rxc8 {[%clk 0:02:28.2]} 15. Ne5
{[%clk 0:02:49.8]} 15... Bf8 {[%clk 0:02:01]} 16. f4 {[%clk 0:02:43.5]} 16...
Bg7 {[%clk 0:02:01.2]} 17. Be1 {[%clk 0:02:42.6]} 17... Qc7 {[%clk 0:01:56.4]}
18. Bh4 {[%clk 0:02:37.7]} 18... Ne4 {[%clk 0:01:53.4]} 19. Nxd5 {[%clk
0:02:13.1]} 19... Nxd5 {[%clk 0:01:48.5]} 20. Qxe4 {[%clk 0:02:13.4]} 20... Qd6
{[%clk 0:01:32.8]} 21. f5 {[%clk 0:01:54]} 21... Bxe5 {[%clk 0:01:27.5]} 22.
dxe5 {[%clk 0:01:49.5]} 22... Qxe5 {[%clk 0:01:28]} 23. Qxe5 {[%clk 0:01:37]}
23... Rxe5 {[%clk 0:01:27.8]} 24. fxg6 {[%clk 0:01:29.9]} 24... hxg6 {[%clk
0:01:27]} 25. Bf2 {[%clk 0:01:28.2]} 25... Nxe3 {[%clk 0:01:12.2]} 26. Rfe1
{[%clk 0:01:24]} 26... Rce8 {[%clk 0:01:12.1]} 27. a4 {[%clk 0:01:07.5]} 27...
a6 {[%clk 0:01:07.2]} 28. a5 {[%clk 0:01:05.3]} 28... f5 {[%clk 0:01:02]} 29.
Bxe3 {[%clk 0:00:59.1]} 29... Rxe3 {[%clk 0:01:01.6]} 30. Rxe3 {[%clk 0:01:00]}
30... Rxe3 {[%clk 0:01:01.5]} 31. Rc1 {[%clk 0:01:00.9]} 31... Re4 {[%clk
0:00:51]} 32. Rc3 {[%clk 0:00:59.9]} 32... Kg7 {[%clk 0:00:37.9]} 33. b3 {[%clk
0:00:56.1]} 33... cxb3 {[%clk 0:00:37.5]} 34. Rxb3 {[%clk 0:00:51.4]} 34... Re5
{[%clk 0:00:34.4]} 35. Rxb7+ {[%clk 0:00:50.8]} 35... Kh6 {[%clk 0:00:34]} 36.
Ra7 {[%clk 0:00:50]} 36... Rxa5 {[%clk 0:00:33.9]} 37. Kf2 {[%clk 0:00:45]}
37... Kg5 {[%clk 0:00:30.7]} 38. Kf3 {[%clk 0:00:41.4]} 38... Ra3+ {[%clk
0:00:30.6]} 39. Kf2 {[%clk 0:00:42]} 39... Kf4 {[%clk 0:00:26]} 40. Rb7 {[%clk
0:00:30.6]} 40... Ra2+ {[%clk 0:00:25.9]} 41. Kg1 {[%clk 0:00:30.6]} 41... a5
{[%clk 0:00:24.1]} 42. Rb6 {[%clk 0:00:22.6]} 42... g5 {[%clk 0:00:23.7]} 43. h3
{[%clk 0:00:13.7]} 43... a4 {[%clk 0:00:14.3]} 44. Kh2 {[%clk 0:00:14.1]} 44...
g4 {[%clk 0:00:10]} 45. hxg4 {[%clk 0:00:12.6]} 45... Kxg4 {[%clk 0:00:07.4]}
46. Rg6+ {[%clk 0:00:09.1]} 46... Kf4 {[%clk 0:00:07.8]} 47. Ra6 {[%clk
0:00:09.6]} 47... Ra1 {[%clk 0:00:05.5]} 48. Ra8 {[%clk 0:00:09.4]} 48... Ke4
{[%clk 0:00:03.7]} 49. Re8+ {[%clk 0:00:08.9]} 49... Kf4 {[%clk 0:00:03.6]} 50.
Ra8 {[%clk 0:00:09.1]} 50... Ra3 {[%clk 0:00:04.1]} 51. Ra7 {[%clk 0:00:08.9]}
51... Ra2 {[%clk 0:00:04.6]} 52. Ra8 {[%clk 0:00:09.3]} 52... Ke4 {[%clk
0:00:03.2]} 53. Re8+ {[%clk 0:00:09.5]} 53... Kd5 {[%clk 0:00:03.6]} 54. Rf8
{[%clk 0:00:09.1]} 54... Ke5 {[%clk 0:00:03.9]} 55. Re8+ {[%clk 0:00:09.5]}
55... Kf6 {[%clk 0:00:04.5]} 56. Ra8 {[%clk 0:00:10.2]} 56... a3 {[%clk
0:00:04.4]} 57. Ra5 {[%clk 0:00:09.2]} 57... Kg5 {[%clk 0:00:04.5]} 58. Kg3
{[%clk 0:00:09.2]} 58... Ra1 {[%clk 0:00:04.1]} 59. Ra8 {[%clk 0:00:09.4]} 59...
Kf6 {[%clk 0:00:03.7]} 60. Kf4 {[%clk 0:00:06.9]} 60... Rf1+ {[%clk 0:00:02.6]}
61. Kg3 {[%clk 0:00:07.2]} 61... Ra1 {[%clk 0:00:03]} 62. Kf4 {[%clk 0:00:07.6]}
62... a2 {[%clk 0:00:03.1]} 63. Ra6+ {[%clk 0:00:06.5]} 63... Ke7 {[%clk
0:00:03]} 64. Kg3 {[%clk 0:00:07.1]} 64... f4+ {[%clk 0:00:03.5]} 65. Kh2 {[%clk
0:00:06.9]} 65... Kd7 {[%clk 0:00:03.9]} 66. Ra7+ {[%clk 0:00:07.2]} 66... Kc6
{[%clk 0:00:04.3]} 67. Ra8 {[%clk 0:00:07.9]} 67... Kb7 {[%clk 0:00:04.3]} 68.
Ra3 {[%clk 0:00:08]} 68... Kb6 {[%clk 0:00:04.7]} 69. Ra4 {[%clk 0:00:08.4]}
69... Kb5 {[%clk 0:00:05.1]} 70. Ra8 {[%clk 0:00:09.1]} 70... Kc4 {[%clk
0:00:05.6]} 71. Rc8+ {[%clk 0:00:09.2]} 71... Kd3 {[%clk 0:00:05.9]} 72. Rd8+
{[%clk 0:00:09.6]} 72... Ke2 {[%clk 0:00:05.9]} 73. Re8+ {[%clk 0:00:10.2]}
73... Kf2 {[%clk 0:00:05.9]} 74. Ra8 {[%clk 0:00:10.8]} 74... f3 {[%clk
0:00:05]} 75. gxf3 {[%clk 0:00:10.5]} 75... Kxf3 {[%clk 0:00:05.6]} 76. Ra3+
{[%clk 0:00:10.3]} 76... Ke4 {[%clk 0:00:05.9]} 77. Ra8 {[%clk 0:00:11.2]} 77...
Kd3 {[%clk 0:00:06.4]} 78. Rd8+ {[%clk 0:00:11.2]} 78... Kc4 {[%clk 0:00:06.9]}
79. Rc8+ {[%clk 0:00:11.8]} 79... Kd5 {[%clk 0:00:07.3]} 80. Rd8+ {[%clk
0:00:11.7]} 80... Kc6 {[%clk 0:00:07.8]} 81. Ra8 {[%clk 0:00:12.6]} 81... Kb7
{[%clk 0:00:08.4]} 82. Ra3 {[%clk 0:00:12.8]} 82... Kb6 {[%clk 0:00:09]} 83. Ra4
{[%clk 0:00:13.4]} 83... Kc5 {[%clk 0:00:09.4]} 84. Ra8 {[%clk 0:00:13.7]} 84...
Kc6 {[%clk 0:00:10]} 85. Ra3 {[%clk 0:00:13.3]} 85... Kb6 {[%clk 0:00:10.6]} 86.
Ra4 {[%clk 0:00:13.3]} 86... Kb5 {[%clk 0:00:11]} 87. Ra8 {[%clk 0:00:13.7]}
87... Kb4 {[%clk 0:00:11.6]} 88. Rb8+ {[%clk 0:00:13.7]} 88... Kc3 {[%clk
0:00:12.3]} 89. Rc8+ {[%clk 0:00:14.3]} 89... Kd2 {[%clk 0:00:12.9]} 90. Rd8+
{[%clk 0:00:14.9]} 90... Kc1 {[%clk 0:00:13.4]} 91. Rc8+ {[%clk 0:00:15.3]}
91... Kd1 {[%clk 0:00:13.6]} 92. Rd8+ {[%clk 0:00:15.8]} 92... Ke2 {[%clk
0:00:13.7]} 93. Re8+ {[%clk 0:00:16.3]} 93... Kf3 {[%clk 0:00:14.3]} 94. Rf8+
{[%clk 0:00:16.8]} 94... Ke4 {[%clk 0:00:14.6]} 95. Re8+ {[%clk 0:00:17.3]}
95... Kf5 {[%clk 0:00:15.2]} 96. Ra8 {[%clk 0:00:17.5]} 96... Kg6 {[%clk
0:00:15.7]} 97. Ra6+ {[%clk 0:00:17.8]} 97... Kf7 {[%clk 0:00:16.3]} 98. Ra5
{[%clk 0:00:18.7]} 98... Ke6 {[%clk 0:00:16.4]} 99. Ra6+ {[%clk 0:00:19.3]}
99... Kd5 {[%clk 0:00:17]} 100. Ra8 {[%clk 0:00:20.2]} 100... Kc4 {[%clk
0:00:17.6]} 101. Rc8+ {[%clk 0:00:20.6]} 101... Kd3 {[%clk 0:00:18.2]} 102. Rd8+
{[%clk 0:00:21.1]} 102... Kc2 {[%clk 0:00:18.8]} 103. Rc8+ {[%clk 0:00:21.5]}
103... Kb3 {[%clk 0:00:19.2]} 104. Rb8+ {[%clk 0:00:22.1]} 104... Ka4 {[%clk
0:00:19.8]} 105. Ra8+ {[%clk 0:00:22.6]} 105... Kb5 {[%clk 0:00:20.1]} 106. Ra7
{[%clk 0:00:22.9]} 106... Kb6 {[%clk 0:00:20]} 107. Ra8 {[%clk 0:00:23.4]}
107... Kb7 {[%clk 0:00:20.6]} 108. Ra3 {[%clk 0:00:23.6]} 108... Kc6 {[%clk
0:00:21.1]} 109. Ra8 {[%clk 0:00:23.6]} 109... Kb5 {[%clk 0:00:21.2]} 110. Rb8+
{[%clk 0:00:23.9]} 110... Kc4 {[%clk 0:00:21.6]} 111. Ra8 {[%clk 0:00:24.5]}
111... Kb3 {[%clk 0:00:22]} 112. Rb8+ {[%clk 0:00:24.9]} 112... Kc2 {[%clk
0:00:22.6]} 113. Rc8+ {[%clk 0:00:25.5]} 113... Kb1 {[%clk 0:00:23.3]} 114. Rb8+
{[%clk 0:00:26]} 114... Kc1 {[%clk 0:00:24.2]} 115. Rc8+ {[%clk 0:00:26.6]}
115... Kb1 {[%clk 0:00:24.9]} 116. Rb8+ {[%clk 0:00:27.1]} 116... Kc1 {[%clk
0:00:25.8]} 117. Rc8+ {[%clk 0:00:27.6]} 1/2-1/2

[Event "Late-Titled-Tuesday-Blitz-February-20-2024"]
[Site "Chess.com"]
[Date "2024.02.20"]
[Round "10"]
[White "mishanick"]
[Black "Elsa167"]
[Result "1-0"]
[WhiteElo "3006"]
[BlackElo "2892"]
[TimeControl "180+1"]
[EndTime "15:57:30 PST"]
[Termination "mishanick won on time"]

1. d4 {[%clk 0:03:00.9]} 1... Nf6 {[%clk 0:02:54.2]} 2. c4 {[%clk 0:03:01.2]}
2... e6 {[%clk 0:02:54.3]} 3. Nc3 {[%clk 0:03:01.6]} 3... d5 {[%clk 0:02:54.7]}
4. Bg5 {[%clk 0:03:01.1]} 4... Be7 {[%clk 0:02:54.7]} 5. e3 {[%clk 0:03:01.5]}
5... Nbd7 {[%clk 0:02:54.6]} 6. Nf3 {[%clk 0:03:00.7]} 6... O-O {[%clk
0:02:54.2]} 7. Bd3 {[%clk 0:03:00.6]} 7... dxc4 {[%clk 0:02:53.5]} 8. Bxc4
{[%clk 0:03:01.5]} 8... a6 {[%clk 0:02:53]} 9. a4 {[%clk 0:02:58.8]} 9... c5
{[%clk 0:02:52.7]} 10. O-O {[%clk 0:02:58.8]} 10... cxd4 {[%clk 0:02:51.7]} 11.
exd4 {[%clk 0:02:59.2]} 11... Nb6 {[%clk 0:02:50.2]} 12. Bb3 {[%clk 0:02:59.4]}
12... Bd7 {[%clk 0:02:50.2]} 13. Ne5 {[%clk 0:02:59]} 13... Bc6 {[%clk
0:02:45.8]} 14. Qd3 {[%clk 0:02:57.3]} 14... Rc8 {[%clk 0:02:33.6]} 15. Rfe1
{[%clk 0:02:57]} 15... Nfd5 {[%clk 0:02:31.4]} 16. Bxe7 {[%clk 0:02:37.9]} 16...
Nxe7 {[%clk 0:01:47.1]} 17. Nxf7 {[%clk 0:02:36.5]} 17... Rxf7 {[%clk
0:01:42.7]} 18. Bxe6 {[%clk 0:02:37.2]} 18... Nbd5 {[%clk 0:01:28.7]} 19. Bxf7+
{[%clk 0:02:23.5]} 19... Kxf7 {[%clk 0:01:28.7]} 20. Qxh7 {[%clk 0:02:24]} 20...
Ng6 {[%clk 0:01:20.5]} 21. Qh5 {[%clk 0:01:38.3]} 21... Qd7 {[%clk 0:00:57.5]}
22. Nxd5 {[%clk 0:01:04.1]} 22... Qxd5 {[%clk 0:00:28.3]} 23. Qxd5+ {[%clk
0:01:02.5]} 23... Bxd5 {[%clk 0:00:29.2]} 24. Rac1 {[%clk 0:01:01.1]} 24... Rd8
{[%clk 0:00:29.4]} 25. Rc7+ {[%clk 0:00:59.9]} 25... Kf6 {[%clk 0:00:29.7]} 26.
g3 {[%clk 0:00:43.4]} 26... Bc6 {[%clk 0:00:26.7]} 27. Rd1 {[%clk 0:00:28.9]}
27... Nf8 {[%clk 0:00:23.8]} 28. d5 {[%clk 0:00:27.4]} 28... Ne6 {[%clk
0:00:14.9]} 29. Rxc6 {[%clk 0:00:10.4]} 29... bxc6 {[%clk 0:00:15.1]} 30. d6
{[%clk 0:00:11.1]} 30... Ke5 {[%clk 0:00:06.8]} 31. f4+ {[%clk 0:00:10.7]} 31...
Ke4 {[%clk 0:00:04.7]} 32. d7 {[%clk 0:00:07.6]} 32... Nd4 {[%clk 0:00:04.7]}
33. Re1+ {[%clk 0:00:07.8]} 33... Kd5 {[%clk 0:00:04.9]} 34. Re7 {[%clk
0:00:08.3]} 34... g6 {[%clk 0:00:03]} 35. h4 {[%clk 0:00:06.8]} 35... Nf5 {[%clk
0:00:03.2]} 36. Re5+ {[%clk 0:00:06.8]} 36... Kd6 {[%clk 0:00:03.6]} 37. g4
{[%clk 0:00:07.2]} 37... Nxh4 {[%clk 0:00:03.7]} 38. Kf2 {[%clk 0:00:07.8]}
38... Kxd7 {[%clk 0:00:02]} 39. Kg3 {[%clk 0:00:07.8]} 39... Rh8 {[%clk
0:00:02.6]} 40. b4 {[%clk 0:00:07.2]} 40... Kd6 {[%clk 0:00:02.9]} 41. Rg5
{[%clk 0:00:07.1]} 41... Kc7 {[%clk 0:00:02.4]} 42. Rc5 {[%clk 0:00:06.8]} 42...
Kd6 {[%clk 0:00:02.8]} 43. a5 {[%clk 0:00:06.7]} 43... Kd7 {[%clk 0:00:03]} 44.
Rg5 {[%clk 0:00:05.5]} 44... Kd6 {[%clk 0:00:03.6]} 45. Re5 {[%clk 0:00:05.5]}
45... Kd7 {[%clk 0:00:04.1]} 46. Rc5 {[%clk 0:00:03.5]} 46... Kd6 {[%clk
0:00:04.7]} 47. Rg5 {[%clk 0:00:03.7]} 47... Kd7 {[%clk 0:00:05.3]} 48. Rc5
{[%clk 0:00:02.2]} 48... Kd6 {[%clk 0:00:05.2]} 49. Re5 {[%clk 0:00:02.5]} 49...
Kd7 {[%clk 0:00:05.4]} 50. Re2 {[%clk 0:00:02.5]} 50... g5 {[%clk 0:00:05.6]}
51. fxg5 {[%clk 0:00:02.9]} 51... Ng6 {[%clk 0:00:05.9]} 52. Rf2 {[%clk
0:00:03.6]} 52... Rg8 {[%clk 0:00:04]} 53. Rf7+ {[%clk 0:00:03.6]} 53... Ne7
{[%clk 0:00:03.4]} 54. Kh4 {[%clk 0:00:03.8]} 54... Ke6 {[%clk 0:00:03.7]} 55.
Rf6+ {[%clk 0:00:03.9]} 55... Ke5 {[%clk 0:00:04.3]} 56. Kh5 {[%clk 0:00:03.7]}
56... Nd5 {[%clk 0:00:02.7]} 57. Rf5+ {[%clk 0:00:03.7]} 57... Ke6 {[%clk
0:00:02.9]} 58. Kh6 {[%clk 0:00:02.7]} 58... Ne7 {[%clk 0:00:02]} 59. Rf6+
{[%clk 0:00:03.1]} 59... Ke5 {[%clk 0:00:02.6]} 60. Rf7 {[%clk 0:00:02.6]} 60...
Ke6 {[%clk 0:00:02.4]} 61. Rf6+ {[%clk 0:00:02.8]} 61... Ke5 {[%clk 0:00:03.1]}
62. Rf7 {[%clk 0:00:03.5]} 62... Ke6 {[%clk 0:00:03.3]} 63. Rf1 {[%clk
0:00:03.8]} 63... Rg6+ {[%clk 0:00:02.7]} 64. Kh5 {[%clk 0:00:04.2]} 64... Rg8
{[%clk 0:00:03.3]} 65. Re1+ {[%clk 0:00:04.6]} 65... Kf7 {[%clk 0:00:03.4]} 66.
Rf1+ {[%clk 0:00:02.6]} 66... Kg7 {[%clk 0:00:03.7]} 67. Kh4 {[%clk 0:00:03.2]}
67... Ng6+ {[%clk 0:00:03.3]} 68. Kg3 {[%clk 0:00:03.8]} 68... Rb8 {[%clk
0:00:03.7]} 69. Rc1 {[%clk 0:00:04.1]} 69... Ne7 {[%clk 0:00:02.4]} 70. Rc4
{[%clk 0:00:04.1]} 70... Kf7 {[%clk 0:00:02.4]} 71. Rf4+ {[%clk 0:00:04.1]}
71... Ke6 {[%clk 0:00:02.9]} 72. Re4+ {[%clk 0:00:03.4]} 72... Kd6 {[%clk
0:00:03.6]} 73. Kh4 {[%clk 0:00:03.6]} 73... Rh8+ {[%clk 0:00:03.3]} 74. Kg3
{[%clk 0:00:04.1]} 74... Rg8 {[%clk 0:00:03.9]} 75. Kh4 {[%clk 0:00:04.3]} 75...
Rh8+ {[%clk 0:00:03.6]} 76. Kg3 {[%clk 0:00:04.9]} 76... Ng6 {[%clk 0:00:03.6]}
77. Rd4+ {[%clk 0:00:04.7]} 77... Ke6 {[%clk 0:00:04.1]} 78. Rc4 {[%clk
0:00:04.3]} 78... Ne5 {[%clk 0:00:04.2]} 79. Rf4 {[%clk 0:00:04.2]} 79... Rd8
{[%clk 0:00:03.4]} 80. Rf6+ {[%clk 0:00:04.4]} 80... Kd5 {[%clk 0:00:03.4]} 81.
Kh4 {[%clk 0:00:01.3]} 81... Rh8+ {[%clk 0:00:03.9]} 82. Kg3 {[%clk 0:00:01.8]}
82... Rg8 {[%clk 0:00:04.3]} 83. Kh4 {[%clk 0:00:01.4]} 83... Rh8+ {[%clk
0:00:03.2]} 84. Kg3 {[%clk 0:00:01.5]} 84... c5 {[%clk 0:00:03.7]} 85. bxc5
{[%clk 0:00:01.4]} 85... Nc6 {[%clk 0:00:03.8]} 86. Rf5+ {[%clk 0:00:01.7]}
86... Ke4 {[%clk 0:00:03.4]} 87. g6 {[%clk 0:00:02.1]} 87... Rg8 {[%clk
0:00:03.2]} 88. Rf6 {[%clk 0:00:02.6]} 88... Ne5 {[%clk 0:00:03.1]} 89. Rxa6
{[%clk 0:00:02.3]} 89... Nxg6 {[%clk 0:00:03.4]} 90. c6 {[%clk 0:00:02.1]} 90...
Ne5 {[%clk 0:00:03.5]} 91. c7 {[%clk 0:00:02.4]} 91... Rxg4+ {[%clk 0:00:03.8]}
92. Kh3 {[%clk 0:00:02.3]} 92... Rg8 {[%clk 0:00:04.7]} 93. Rb6 {[%clk
0:00:02.6]} 93... Rc8 {[%clk 0:00:03.8]} 94. Rb7 {[%clk 0:00:03.2]} 94... Nd7
{[%clk 0:00:03.2]} 95. a6 {[%clk 0:00:03.5]} 95... Nc5 {[%clk 0:00:03.8]} 96.
Rb4+ {[%clk 0:00:02.7]} 96... Kd5 {[%clk 0:00:04.4]} 97. a7 {[%clk 0:00:03.4]}
97... Na6 {[%clk 0:00:01.4]} 98. Rb8 {[%clk 0:00:03.9]} 98... Rxc7 {[%clk
0:00:01.6]} 99. a8=Q+ {[%clk 0:00:04.1]} 99... Rc6 {[%clk 0:00:01.5]} 100. Rd8+
{[%clk 0:00:04.2]} 1-0

[Event "Late-Titled-Tuesday-Blitz-February-20-2024"]
[Site "Chess.com"]
[Date "2024.02.20"]
[Round "10"]
[White "ContrVersia"]
[Black "ArtemDyachuk"]
[Result "1/2-1/2"]
[WhiteElo "2855"]
[BlackElo "2675"]
[TimeControl "180+1"]
[EndTime "15:57:34 PST"]
[Termination "Game drawn - insufficient material"]

1. Nf3 {[%clk 0:03:00.9]} 1... d5 {[%clk 0:02:58]} 2. c4 {[%clk 0:03:01.1]} 2...
d4 {[%clk 0:02:55.4]} 3. b4 {[%clk 0:03:00.8]} 3... c5 {[%clk 0:02:51.7]} 4. Bb2
{[%clk 0:03:00.5]} 4... Nf6 {[%clk 0:02:49.9]} 5. g3 {[%clk 0:03:00.6]} 5... g6
{[%clk 0:02:48.8]} 6. Bg2 {[%clk 0:02:59.4]} 6... Bg7 {[%clk 0:02:49.3]} 7. O-O
{[%clk 0:02:59.4]} 7... O-O {[%clk 0:02:49.9]} 8. d3 {[%clk 0:02:58.1]} 8...
cxb4 {[%clk 0:02:49.4]} 9. Bxd4 {[%clk 0:02:57]} 9... Nc6 {[%clk 0:02:49.4]} 10.
Bb2 {[%clk 0:02:57.3]} 10... Re8 {[%clk 0:02:49.7]} 11. a3 {[%clk 0:02:56.3]}
11... bxa3 {[%clk 0:02:45.7]} 12. Rxa3 {[%clk 0:02:55.3]} 12... e5 {[%clk
0:02:43.9]} 13. Nfd2 {[%clk 0:02:55.4]} 13... Be6 {[%clk 0:02:35.2]} 14. Nc3
{[%clk 0:02:55]} 14... Nd7 {[%clk 0:02:32.5]} 15. Qa1 {[%clk 0:02:50.3]} 15...
Bf8 {[%clk 0:02:28]} 16. Ra4 {[%clk 0:02:29.4]} 16... a5 {[%clk 0:02:00.8]} 17.
Nb3 {[%clk 0:02:20.1]} 17... Bb4 {[%clk 0:01:52.7]} 18. Nb5 {[%clk 0:02:14.9]}
18... Nb6 {[%clk 0:01:47.5]} 19. Ra2 {[%clk 0:02:14.5]} 19... Nxc4 {[%clk
0:01:48.1]} 20. dxc4 {[%clk 0:01:51.4]} 20... Bxc4 {[%clk 0:01:49]} 21. Rd1
{[%clk 0:01:51.7]} 21... Qb6 {[%clk 0:01:40.4]} 22. Nd6 {[%clk 0:01:42.1]} 22...
Bxd6 {[%clk 0:01:40.2]} 23. Rxd6 {[%clk 0:01:40]} 23... Bxb3 {[%clk 0:01:36.8]}
24. Ra3 {[%clk 0:01:37.5]} 24... a4 {[%clk 0:01:35.7]} 25. Bxe5 {[%clk
0:01:35.8]} 25... Rxe5 {[%clk 0:00:12.6]} 26. Qxe5 {[%clk 0:01:35]} 26... Qb4
{[%clk 0:00:13.2]} 27. Bxc6 {[%clk 0:01:12.4]} 27... Qxa3 {[%clk 0:00:11.2]} 28.
Bxb7 {[%clk 0:01:12.7]} 28... Rf8 {[%clk 0:00:08.7]} 29. Bd5 {[%clk 0:01:01.1]}
29... Qc1+ {[%clk 0:00:06]} 30. Kg2 {[%clk 0:01:01.2]} 30... Qc8 {[%clk
0:00:02.8]} 31. Bxb3 {[%clk 0:00:58]} 31... axb3 {[%clk 0:00:03.7]} 32. Rb6
{[%clk 0:00:57.9]} 32... Qc4 {[%clk 0:00:03.1]} 33. Qb2 {[%clk 0:00:49.8]} 33...
Qd5+ {[%clk 0:00:02.6]} 34. f3 {[%clk 0:00:48.6]} 34... Re8 {[%clk 0:00:02.9]}
35. e4 {[%clk 0:00:47.9]} 35... Qc5 {[%clk 0:00:03]} 36. Rxb3 {[%clk 0:00:45.6]}
36... h5 {[%clk 0:00:03.6]} 37. Qc3 {[%clk 0:00:44.4]} 37... Qd6 {[%clk
0:00:02.3]} 38. Qd3 {[%clk 0:00:42.9]} 38... Qe6 {[%clk 0:00:02.5]} 39. Qd5
{[%clk 0:00:40.9]} 39... Qf6 {[%clk 0:00:02.9]} 40. Rd3 {[%clk 0:00:38.3]} 40...
Rb8 {[%clk 0:00:02.3]} 41. Rd2 {[%clk 0:00:36.4]} 41... h4 {[%clk 0:00:01.9]}
42. Qd6 {[%clk 0:00:35]} 42... Qxd6 {[%clk 0:00:01.6]} 43. Rxd6 {[%clk
0:00:35.9]} 43... Rb2+ {[%clk 0:00:01.5]} 44. Kh3 {[%clk 0:00:36.3]} 44... hxg3
{[%clk 0:00:02.1]} 45. hxg3 {[%clk 0:00:37.2]} 45... Rb3 {[%clk 0:00:02.4]} 46.
Kg4 {[%clk 0:00:36.9]} 46... Kg7 {[%clk 0:00:03]} 47. Kf4 {[%clk 0:00:36.8]}
47... Rb5 {[%clk 0:00:02.7]} 48. Rd5 {[%clk 0:00:35.2]} 48... Rb6 {[%clk
0:00:03]} 49. g4 {[%clk 0:00:35.5]} 49... Rf6+ {[%clk 0:00:02.9]} 50. Ke3 {[%clk
0:00:35.9]} 50... Rb6 {[%clk 0:00:03.3]} 51. g5 {[%clk 0:00:36.8]} 51... Rb3+
{[%clk 0:00:03.3]} 52. Kf4 {[%clk 0:00:37.1]} 52... Rb6 {[%clk 0:00:03.6]} 53.
Ra5 {[%clk 0:00:36.4]} 53... Rc6 {[%clk 0:00:03.6]} 54. Ke5 {[%clk 0:00:36.1]}
54... Re6+ {[%clk 0:00:03.5]} 55. Kd5 {[%clk 0:00:36.3]} 55... Rb6 {[%clk
0:00:04.1]} 56. f4 {[%clk 0:00:36.2]} 56... Rb3 {[%clk 0:00:03.8]} 57. Ke5
{[%clk 0:00:36.1]} 57... Rb6 {[%clk 0:00:03.9]} 58. Rd5 {[%clk 0:00:36.5]} 58...
Re6+ {[%clk 0:00:04.1]} 59. Kd4 {[%clk 0:00:37.4]} 59... Ra6 {[%clk 0:00:04.6]}
60. f5 {[%clk 0:00:37.7]} 60... gxf5 {[%clk 0:00:03.3]} 61. exf5 {[%clk
0:00:38.6]} 61... Ra1 {[%clk 0:00:03.5]} 62. Kc5 {[%clk 0:00:36.6]} 62... Rc1+
{[%clk 0:00:03.5]} 63. Kd6 {[%clk 0:00:36.4]} 63... Re1 {[%clk 0:00:04.1]} 64.
Re5 {[%clk 0:00:35.8]} 64... Rg1 {[%clk 0:00:04.6]} 65. Ke7 {[%clk 0:00:34.1]}
65... Ra1 {[%clk 0:00:04.1]} 66. Rd5 {[%clk 0:00:33.3]} 66... Ra7+ {[%clk
0:00:03.4]} 67. Kd6 {[%clk 0:00:32]} 67... Ra6+ {[%clk 0:00:03.1]} 68. Ke5
{[%clk 0:00:32.4]} 68... Ra8 {[%clk 0:00:03.6]} 69. Rd7 {[%clk 0:00:31.4]} 69...
Ra5+ {[%clk 0:00:04]} 70. Kf4 {[%clk 0:00:31.7]} 70... Ra4+ {[%clk 0:00:04.3]}
71. Kg3 {[%clk 0:00:32.2]} 71... Kg8 {[%clk 0:00:02.1]} 72. Kf3 {[%clk
0:00:27.9]} 72... Rb4 {[%clk 0:00:02.2]} 73. f6 {[%clk 0:00:28.1]} 73... Ra4
{[%clk 0:00:02.1]} 74. Re7 {[%clk 0:00:28.1]} 74... Rb4 {[%clk 0:00:01.6]} 75.
Re4 {[%clk 0:00:28.3]} 75... Rb5 {[%clk 0:00:01.8]} 76. Kg4 {[%clk 0:00:28.5]}
76... Kh7 {[%clk 0:00:01.9]} 77. Re8 {[%clk 0:00:23.8]} 77... Rb1 {[%clk
0:00:01.1]} 78. Rf8 {[%clk 0:00:22.3]} 78... Rg1+ {[%clk 0:00:01.2]} 79. Kf5
{[%clk 0:00:22.6]} 79... Rf1+ {[%clk 0:00:01.6]} 80. Ke5 {[%clk 0:00:23.1]}
80... Kg6 {[%clk 0:00:01.7]} 81. Rg8+ {[%clk 0:00:23.1]} 81... Kh5 {[%clk
0:00:02.2]} 82. Rg7 {[%clk 0:00:23.5]} 82... Re1+ {[%clk 0:00:02.2]} 83. Kd6
{[%clk 0:00:23.7]} 83... Re2 {[%clk 0:00:02.6]} 84. g6 {[%clk 0:00:23.1]} 84...
fxg6 {[%clk 0:00:02.5]} 85. f7 {[%clk 0:00:23.4]} 85... Rf2 {[%clk 0:00:02.8]}
86. Ke7 {[%clk 0:00:15.6]} 86... g5 {[%clk 0:00:01.7]} 87. f8=Q {[%clk
0:00:13.4]} 87... Rxf8 {[%clk 0:00:02.3]} 88. Kxf8 {[%clk 0:00:14.3]} 88... Kg4
{[%clk 0:00:02.9]} 89. Ke7 {[%clk 0:00:14.5]} 89... Kf4 {[%clk 0:00:03.3]} 90.
Kd6 {[%clk 0:00:13.9]} 90... g4 {[%clk 0:00:03.8]} 91. Kd5 {[%clk 0:00:14.2]}
91... g3 {[%clk 0:00:03.7]} 92. Kd4 {[%clk 0:00:14.6]} 92... Kf3 {[%clk
0:00:04.1]} 93. Rf7+ {[%clk 0:00:13.9]} 93... Ke2 {[%clk 0:00:04.1]} 94. Rg7
{[%clk 0:00:12.1]} 94... Kf2 {[%clk 0:00:04.3]} 95. Rf7+ {[%clk 0:00:11.1]}
95... Ke2 {[%clk 0:00:04.6]} 96. Re7+ {[%clk 0:00:10.7]} 96... Kf2 {[%clk
0:00:04.7]} 97. Kd3 {[%clk 0:00:10.1]} 97... g2 {[%clk 0:00:04.6]} 98. Rf7+
{[%clk 0:00:10.8]} 98... Kg3 {[%clk 0:00:04.5]} 99. Rg7+ {[%clk 0:00:08]} 99...
Kf2 {[%clk 0:00:04.5]} 100. Rf7+ {[%clk 0:00:08.4]} 100... Kg3 {[%clk
0:00:04.9]} 101. Ke2 {[%clk 0:00:06]} 101... g1=Q {[%clk 0:00:04.4]} 102. Rg7+
{[%clk 0:00:06.3]} 102... Kh2 {[%clk 0:00:05]} 103. Rh7+ {[%clk 0:00:06.8]}
103... Kg2 {[%clk 0:00:05.1]} 104. Rg7+ {[%clk 0:00:07.3]} 104... Kh1 {[%clk
0:00:05.7]} 105. Rxg1+ {[%clk 0:00:08.2]} 105... Kxg1 {[%clk 0:00:05.9]} 1/2-1/2